[Event "GER-ch Youth-U18 2022"]
[Site "Willingen"]
[Date "2022.06.06"]
[Round "3.11"]
[White "Wehrle, Maximilian"]
[Black "Leonard, Timo"]
[Result "0-1"]
[ECO "D43"]
[WhiteElo "1786"]
[BlackElo "2018"]
[Annotator "TA"]
[PlyCount "86"]
[EventDate "2022.06.05"]
[EventType "swiss"]
[EventRounds "9"]
[EventCountry "GER"]
[SourceTitle "playchess.com"]
[Source "ChessBase"]
[SourceQuality "1"]
[TimeControl "40/4500+30:900+30"]

{[%evp 17,86,-9,0,-44,-42,-39,-43,-86,-23,-73,-69,-112,-115,-110,-111,-138,-162,-207,-154,-108,-14,-7,-10,-5,24,14,24,-54,-45,-166,-155,-368,-200,-249,-163,-364,-375,-352,-327,-444,-359,-357,-331,-637,-634,-616,-185,-186,-7,-321,-318,-387,-391,-443,-437,-650,-349,-734,-704,-709,-725,-703,-721,-721,-683,-695,-598,-29971,-29972,-29983,-29984]} 1. d4 {[%emt 0:00:00]} d5 {[%emt 0:00:00]} 2. c4 {[%emt 0:00:00]} c6 {[%emt 0:00:00]} 3. Nf3 {[%emt 0:00:00]} Nf6 {[%emt 0:00:00]} 4. Nc3 {[%emt 0:00:00]} e6 {[%emt 0:00:00]} 5. g3 {[%emt 0:00:00]} dxc4 {[%emt 0:00:00]} 6. a4 {[%emt 0:00:00]} Bb4 {[%emt 0:00:00]} 7. Bg2 {[%emt 0:00:00]} Nbd7 {[%emt 0:00:00]} 8. O-O {[%emt 0:01:15]} O-O {[%emt 0:00:00]} 9. Qc2 {[%emt 0:08:45]} a5 {[%emt 0:01:15] [#]} 10. Bg5 $146 {[%emt 0:09:18] E01: Catalan: Early deviations.} ({Predecessor:} 10. e4 e5 11. dxe5 Ng4 12. Bf4 Qe7 13. e6 Qxe6 14. Rad1 Nge5 15. Nd4 Qe8 16. Nf5 g6 17. Ne3 Qe6 {½-½ (34) Sarana,A (2649)-Volkov,S (2557) Cheboksary 2021}) 10... h6 {[%emt 0:03:34]} 11. Bc1 {[%emt 0:09:26]} Qe7 {[%emt 0:04:31]} 12. Rd1 {[%emt 0:02:25] Black is slightly better.} Re8 {[%emt 0:07:11]} (12... e5) ({Black should play} 12... e5 $17) 13. e4 {[%emt 0:03:15]} (13. Ne5 $11) 13... e5 $17 {[%emt 0:04:03]} 14. dxe5 {[%emt 0:08:59]} Ng4 {[%emt 0:04:38]} 15. e6 {[%emt 0:05:17]} Qxe6 {[%emt 0:04:23]} 16. Nd4 {[%emt 0:02:12]} Qf6 {[%emt 0:03:16]} 17. f4 {[%emt 0:04:08]} (17. f3 Nge5 18. f4) 17... Bc5 {[%emt 0:21:26]} 18. Nce2 {[%emt 0:02:43]} Qd8 {[%emt 0:12:30] Black is more active.} (18... Nf8 $17 {Hoping for ...Ne6.} 19. Qc3 Ne6) 19. h3 $11 {[%emt 0:04:00]} Ngf6 {[%emt 0:00:10]} 20. Kh2 {[%emt 0:00:22]} Qb6 {[%emt 0:02:15]} 21. e5 {[%emt 0:07:03]} Nd5 {[%emt 0:00:48]} 22. Nf5 {[%emt 0:11:47]} ({White should try} 22. Qxc4 $11 Nf8 23. Bxd5 cxd5 24. Qxd5) 22... Nf8 $15 {[%emt 0:08:07] Strongly threatening ...Nb4.} 23. Bxd5 {[%emt 0:03:32]} (23. Nfd4 $15) 23... cxd5 $19 {[%emt 0:00:03]} 24. Rxd5 $2 {[%emt 0:01:02]} (24. g4 $17) 24... Be6 {[%emt 0:01:41]} (24... Rd8 $142 25. Rxc5 (25. Rxd8 $2 Bxf5 26. Qxf5 Rxd8 $19) 25... Bxf5 26. Qxf5 (26. Qxc4 $2 Ne6 $19) 26... Qxc5) 25. Rd1 {[%emt 0:00:32]} Red8 {[%emt 0:00:52] Against Nfd4. ...Bxf5 is the strong threat.} 26. Nh4 {[%emt 0:01:26]} (26. Rf1) 26... Rxd1 {[%emt 0:00:23]} 27. Qxd1 {[%emt 0:00:06]} Rd8 {[%emt 0:00:07]} 28. Qc2 {[%emt 0:00:20]} Be7 {[%emt 0:01:14]} 29. Ng2 {[%emt 0:00:23]} Rd3 {[%emt 0:02:26] Inhibits Be3.} 30. f5 $2 {[%emt 0:00:51]} (30. Be3 Rxe3 31. Nxe3 Qxe3 32. Nc3) 30... Bxf5 {[%emt 0:01:54] And now ...Qf2 would win.} 31. Nef4 {[%emt 0:00:11] [#]} Bb4 $2 {[%emt 0:00:51]} 32. Qxc4 {[%emt 0:01:18] [#]} Rf3 {[%emt 0:01:00]} ({Stronger than} 32... Rd1 33. Be3 Qd8 34. Bb6 $15) (32... Rd4 $1 $19 {[%cal Rd4c4]} 33. Qf1 Qc6) 33. g4 $2 {[%emt 0:00:50][%mdl 8192]} (33. Be3 $1 $11 Qa6 34. Qxa6 bxa6 35. Ne2) 33... Be6 {[%emt 0:01:21] Really sharp! A strong pair of Bishops.} 34. Qe4 {[%emt 0:00:16]} Qf2 {[%emt 0:00:53] ( -> ...Qg3+)} 35. Be3 {[%emt 0:00:14]} Qg3+ {[%emt 0:00:12]} 36. Kh1 {[%emt 0:00:10]} (36. Kg1 $142 Bd7 37. Rf1 Rxf1+ 38. Kxf1) 36... h5 {[%emt 0:01:13]} 37. Nxe6 $2 {[%emt 0:01:01]} (37. Bg1) 37... Qxh3+ {[%emt 0:00:11]} 38. Kg1 {[%emt 0:00:02]} Nxe6 {[%emt 0:00:21]} 39. Rc1 {[%emt 0:00:21]} hxg4 {[%emt 0:00:54]} 40. Rc8+ {[%emt 0:00:16]} Bf8 {[%emt 0:00:03]} 41. Rc2 {[%emt 0:16:09]} Qh5 {[%emt 0:00:00] aiming for ...g3.} 42. Nf4 {[%emt 0:00:00]} Nxf4 {[%emt 0:00:00]} 43. Bxf4 {[%emt 0:00:00]} Qh3 {[%emt 0:00:00] Weighted Error Value: White=0.88/Black=0.53} 0-1

[Event "GER-ch Youth-U18 2022"]
[Site "Willingen"]
[Date "2022.06.06"]
[Round "3.12"]
[White "Muller, Magnus"]
[Black "Kallweit, Paul"]
[Result "1/2-1/2"]
[ECO "B12"]
[WhiteElo "1464"]
[BlackElo "1863"]
[Annotator "NA RC COMBH"]
[PlyCount "112"]
[EventDate "2022.06.05"]
[EventType "swiss"]
[EventRounds "9"]
[EventCountry "GER"]
[SourceTitle "playchess.com"]
[Source "ChessBase"]
[SourceQuality "1"]
[TimeControl "40/4500+30:900+30"]

1. e4 {[%emt 0:00:00]} c6 {[%emt 0:00:00]} 2. d4 {[%emt 0:00:00]} d5 {[%emt 0:00:00]} 3. e5 {[%emt 0:00:00]} Bf5 {[%emt 0:00:00]} 4. h4 {[%emt 0:00:00]} h6 {[%emt 0:00:00]} 5. g4 {[%emt 0:00:00]} Be4 {[%emt 0:00:00]} 6. f3 {[%emt 0:00:00]} Bh7 {[%emt 0:00:00]} 7. e6 {[%emt 0:01:23]} Qd6 {[%emt 0:05:00]} 8. exf7+ {[%emt 0:00:10]} Kxf7 {[%emt 0:00:07]} 9. Bd3 {[%emt 0:11:40]} Bxd3 {[%emt 0:02:30]} 10. Qxd3 {[%emt 0:03:48]} Nd7 {[%emt 0:01:51]} 11. Ne2 {[%emt 0:03:33]} e5 {[%emt 0:05:49]} 12. Nbc3 $11 {[%emt 0:06:09]} ({Of course not} 12. Qf5+ Ngf6 13. Be3 g6 $15) 12... Re8 {[%emt 0:04:22]} 13. Be3 {[%emt 0:12:16]} exd4 {[%emt 0:11:58]} 14. Bxd4 {[%emt 0:00:18]} Ne5 {[%emt 0:00:43]} 15. Bxe5 {[%emt 0:01:32]} Qxe5 {[%emt 0:04:48]} 16. h5 {[%emt 0:06:55]} Bc5 {[%emt 0:08:12]} 17. O-O-O {[%emt 0:14:55]} Qe3+ {[%emt 0:05:10]} 18. Kb1 {[%emt 0:01:02]} Qxd3 {[%emt 0:03:11]} 19. cxd3 {[%emt 0:00:04]} Nf6 {[%emt 0:07:45]} 20. Ng3 {[%emt 0:03:50]} Re3 {[%emt 0:12:34]} 21. Rhf1 {[%emt 0:00:37]} Rhe8 {[%emt 0:01:57]} 22. Kc2 {[%emt 0:01:42]} Bf8 {[%emt 0:03:02]} 23. Nf5 {[%emt 0:00:14]} R3e6 {[%emt 0:01:15]} 24. Nd4 {[%emt 0:00:11]} Re3 {[%emt 0:02:07]} 25. Nf5 {[%emt 0:00:04]} R3e6 {[%emt 0:00:10]} 26. d4 {[%emt 0:00:03]} b6 {[%emt 0:02:19]} 27. a3 {[%emt 0:02:27]} Rd8 {[%emt 0:00:59]} 28. Rf2 {[%emt 0:00:19]} c5 {[%emt 0:01:45]} 29. Ne2 {[%emt 0:00:29]} Rde8 {[%emt 0:00:44]} 30. Nf4 {[%emt 0:00:26]} Re1 {[%emt 0:00:10]} 31. Nd3 {[%emt 0:06:54]} Rxd1 {[%emt 0:00:37]} 32. Kxd1 {[%emt 0:00:04]} Nd7 {[%emt 0:00:36]} 33. Rc2 {[%emt 0:00:54]} a5 {[%emt 0:01:28]} 34. Nf4 {[%emt 0:00:59]} Nf6 {[%emt 0:00:15]} 35. Ng6 {[%emt 0:00:09]} c4 {[%emt 0:00:50]} 36. Ne5+ {[%emt 0:00:55]} Kg8 {[%emt 0:00:31]} 37. Re2 {[%emt 0:01:07]} Re6 {[%emt 0:00:39]} 38. Ne3 {[%emt 0:01:47]} b5 {[%emt 0:00:30]} 39. f4 {[%emt 0:00:13]} b4 {[%emt 0:00:30]} 40. axb4 {[%emt 0:00:35]} axb4 {[%emt 0:00:25]} 41. Rh2 {[%emt 0:21:41]} Ra6 {[%emt 0:00:00]} 42. g5 {[%emt 0:00:00]} hxg5 {[%emt 0:00:00]} 43. fxg5 {[%emt 0:00:00]} Ne4 {[%emt 0:00:00]} 44. h6 {[%emt 0:00:00]} gxh6 {[%emt 0:04:36]} 45. gxh6 {[%emt 0:00:00]} Rxh6 {[%emt 0:01:26]} 46. Rxh6 {[%emt 0:00:00]} Bxh6 {[%emt 0:00:02]} 47. Nxd5 {[%emt 0:00:00]} Bg7 {[%emt 0:04:59]} 48. Nxb4 {[%emt 0:00:00]} Bxe5 {[%emt 0:00:45]} 49. dxe5 {[%emt 0:00:00]} Kf7 {[%emt 0:00:47]} 50. Ke2 {[%emt 0:00:00]} c3 {[%emt 0:01:04]} 51. bxc3 {[%emt 0:00:00]} Nxc3+ {[%emt 0:00:12]} 52. Kd3 {[%emt 0:00:00]} Na4 {[%emt 0:01:55]} 53. Ke4 {[%emt 0:00:00]} Ke6 {[%emt 0:02:17]} 54. Nd3 {[%emt 0:00:00]} Nc3+ {[%emt 0:01:49]} 55. Kf3 {[%emt 0:00:00]} Nd5 {[%emt 0:00:31]} 56. Nf4+ {[%emt 0:00:00]} Kxe5 {[%emt 0:00:07]} 1/2-1/2

[Event "GER-ch Youth-U18 2022"]
[Site "Willingen"]
[Date "2022.06.06"]
[Round "3.13"]
[White "Orf, Niklas"]
[Black "Mankel, Luca"]
[Result "1/2-1/2"]
[ECO "E10"]
[WhiteElo "1797"]
[BlackElo "2010"]
[Annotator "TA"]
[PlyCount "75"]
[EventDate "2022.06.05"]
[EventType "swiss"]
[EventRounds "9"]
[EventCountry "GER"]
[SourceTitle "playchess.com"]
[Source "ChessBase"]
[SourceQuality "1"]
[TimeControl "40/4500+30:900+30"]

{[%evp 9,75,22,19,24,31,11,45,37,47,59,58,0,4,7,0,15,16,-21,-16,-8,59,68,59,51,71,62,72,46,46,12,28,23,36,28,35,10,56,37,56,28,57,43,52,51,33,41,46,0,0,0,0,-28,-35,-137,-103,-102,-94,-96,-14,-14,-14,-14,-14,-14,-14,-14,0,-14]} 1. d4 {[%emt 0:00:00][%cal Bd2d4,Bd4d5][%mdl 32]} c5 {[%emt 0:00:00]} 2. d5 {[%emt 0:00:00]} Nf6 {[%emt 0:00:00]} 3. Nf3 {[%emt 0:00:00]} e6 {[%emt 0:00:00]} 4. c4 {[%emt 0:00:00]} b5 {[%emt 0:00:00]} 5. e3 {[%emt 0:05:15]} exd5 {[%emt 0:00:00]} 6. cxd5 {[%emt 0:00:34] E10: Blumenfeld Gambit.} a6 {[%emt 0:00:00]} 7. a4 {[%emt 0:00:59]} b4 {[%emt 0:00:00]} 8. Bc4 {[%emt 0:01:48] Hoping for d6. White is slightly better.} d6 {[%emt 0:00:00]} 9. O-O {[%emt 0:01:31]} g6 {[%emt 0:00:00] [#]} 10. b3 $146 {[%emt 0:01:59]} (10. e4 $14) ({Predecessor:} 10. Re1 Bg7 11. e4 O-O 12. e5 dxe5 13. Nxe5 Nfd7 14. Bf4 Nb6 15. Qb3 Bb7 16. d6 Nxc4 17. Nxc4 Nc6 18. d7 Nd4 19. Qd1 Qxd7 20. Nb6 Qc6 {0-1 (20) Lada,M (1961)-Hasterok,M (2108) Katowice 2020}) 10... Bg7 $11 {[%emt 0:00:00]} 11. Bb2 {[%emt 0:00:52]} O-O {[%emt 0:00:00]} 12. Nbd2 {[%emt 0:07:39]} Re8 {[%emt 0:00:00]} 13. Re1 {[%emt 0:02:56]} Bf5 {[%emt 0:00:00]} 14. Ra2 {[%emt 0:15:36]} Ne4 {[%emt 0:08:05]} (14... Nbd7) ({Black should play} 14... Nbd7 $11) 15. Bxg7 {[%emt 0:03:14]} Kxg7 {[%emt 0:00:10]} 16. Nxe4 {[%emt 0:00:03]} Bxe4 {[%emt 0:00:13]} 17. Nd2 {[%emt 0:01:47]} Qf6 {[%emt 0:04:00]} (17... Nd7 $2 18. f3 $18) 18. Nxe4 {[%emt 0:05:00]} Rxe4 {[%emt 0:00:07]} 19. Qd3 {[%emt 0:00:10]} Re7 {[%emt 0:03:09]} 20. f4 {[%emt 0:08:18]} Qf5 {[%emt 0:04:01]} 21. Qxf5 {[%emt 0:08:52]} gxf5 {[%emt 0:00:05]} 22. Bd3 {[%emt 0:00:25]} Kf6 {[%emt 0:00:19]} (22... Nd7 $11 {is more appropriate.}) 23. a5 $14 {[%emt 0:00:26]} Nd7 {[%emt 0:01:46]} 24. Rae2 {[%emt 0:00:21]} Nf8 {[%emt 0:03:27]} 25. Kf2 {[%emt 0:00:45]} Ng6 {[%emt 0:01:20]} 26. h3 {[%emt 0:01:01]} h5 $1 {[%emt 0:00:35] Against g4} 27. g3 {[%emt 0:00:08]} Ree8 {[%emt 0:04:26]} 28. g4 {[%emt 0:05:22]} (28. Kf3 $14 {should be considered.}) 28... hxg4 $11 {[%emt 0:01:21]} 29. hxg4 {[%emt 0:00:04]} fxg4 {[%emt 0:00:22]} 30. Kg3 {[%emt 0:01:20] Prevents Nh4.} Rh8 {[%emt 0:04:18] [#] Inhibits Rh1. And now ...Rh3+ would win.} 31. Kxg4 {[%emt 0:03:16]} (31. Rh2 $1 $15) 31... Rag8 {[%emt 0:01:56][%csl Gd6,Gf6][%cal Rg6e5]} 32. Bxg6 {[%emt 0:02:49]} Kxg6 $17 {[%emt 0:01:27][%mdl 4096] Endgame KRR-KRR} 33. Kf3 {[%emt 0:00:50]} f5 {[%emt 0:01:11]} (33... Kf6 $17 {Strongly threatening ...Rh3+.} 34. Rd2 Kf5 35. e4+ Kf6 36. e5+ Kf5) 34. Rg2+ {[%emt 0:00:34] The position is equal.} Kf7 {[%emt 0:00:11]} 35. Rxg8 {[%emt 0:00:42]} Kxg8 {[%emt 0:00:04]} 36. Kg2 {[%emt 0:04:18]} Kf7 {[%emt 0:00:41]} 37. Kg3 {[%emt 0:01:07]} Kf6 {[%emt 0:02:22]} 38. Kg2 {[%emt 0:01:21] Weighted Error Value: White=0.16 (very precise) /Black=0.15 (very precise)} 1/2-1/2

[Event "GER-ch Youth-U18 2022"]
[Site "Willingen"]
[Date "2022.06.06"]
[Round "3.14"]
[White "Chen, Qingzhi Alexander"]
[Black "Dietlmeier, Tobias"]
[Result "1-0"]
[ECO "B76"]
[WhiteElo "1879"]
[BlackElo "1886"]
[Annotator "NA RC COMBH"]
[PlyCount "97"]
[EventDate "2022.06.05"]
[EventType "swiss"]
[EventRounds "9"]
[EventCountry "GER"]
[SourceTitle "playchess.com"]
[Source "ChessBase"]
[SourceQuality "1"]
[TimeControl "40/4500+30:900+30"]

1. e4 {[%emt 0:00:00]} c5 {[%emt 0:00:00]} 2. Nf3 {[%emt 0:00:00]} d6 {[%emt 0:00:00]} 3. d4 {[%emt 0:00:00]} cxd4 {[%emt 0:00:00]} 4. Nxd4 {[%emt 0:00:00]} Nf6 {[%emt 0:00:00]} 5. Nc3 {[%emt 0:00:00]} g6 {[%emt 0:00:00]} 6. Be3 {[%emt 0:00:00]} Bg7 {[%emt 0:00:00]} 7. f3 {[%emt 0:00:00]} O-O {[%emt 0:00:00]} 8. Qd2 {[%emt 0:00:00]} Nc6 {[%emt 0:00:00]} 9. g4 {[%emt 0:00:00]} e6 {[%emt 0:00:00]} 10. O-O-O {[%emt 0:00:00]} d5 {[%emt 0:00:10]} 11. g5 {[%emt 0:00:00]} Ne8 {[%emt 0:00:40]} 12. Nb3 {[%emt 0:00:00]} d4 {[%emt 0:03:28]} 13. Nxd4 {[%emt 0:00:00]} Nxd4 {[%emt 0:00:13]} 14. Bxd4 {[%emt 0:00:11]} Bxd4 {[%emt 0:00:17]} 15. Qxd4 {[%emt 0:00:10]} Qxg5+ {[%emt 0:00:15]} 16. Kb1 {[%emt 0:00:50]} b6 {[%emt 0:08:15]} 17. h4 {[%emt 0:10:30]} Qf4 {[%emt 0:06:26] [#]} 18. h5 $1 {[%emt 0:10:26]} Qxf3 {[%emt 0:12:20]} 19. Be2 {[%emt 0:03:23]} Qf6 {[%emt 0:00:36]} 20. e5 {[%emt 0:02:48]} Qe7 {[%emt 0:07:55] [#]} 21. Ne4 $14 {[%emt 0:06:54]} (21. Bf3 $1 $18 {[%cal Rf3a8]} Bb7 22. Bxb7 Qxb7 23. Qf4) 21... Bb7 {[%emt 0:07:56]} 22. Bf3 {[%emt 0:30:17]} Rc8 {[%emt 0:04:17]} 23. Nf6+ {[%emt 0:02:29]} Nxf6 {[%emt 0:03:47]} 24. exf6 {[%emt 0:00:11]} Qc7 {[%emt 0:01:03]} 25. Bxb7 {[%emt 0:02:09]} Qxb7 {[%emt 0:05:14]} 26. Qe3 {[%emt 0:01:16]} Kh8 {[%emt 0:01:59]} 27. Qh6 {[%emt 0:00:22]} Rg8 {[%emt 0:00:34]} 28. Rdg1 {[%emt 0:06:49]} g5 {[%emt 0:00:56]} 29. Rh2 {[%emt 0:01:59]} Rc5 {[%emt 0:07:16]} 30. Rd2 {[%emt 0:01:56]} Rd5 {[%emt 0:06:53]} 31. Rdg2 {[%emt 0:01:19]} Rf5 {[%emt 0:01:27]} 32. Rd2 {[%emt 0:02:25]} Rd5 {[%emt 0:05:55]} 33. Rdg2 {[%emt 0:00:08]} Qd7 {[%emt 0:00:20]} 34. Kc1 {[%emt 0:02:41]} Qd6 {[%emt 0:00:25]} 35. Rg4 {[%emt 0:00:55]} Qc5 {[%emt 0:01:45]} 36. a4 {[%emt 0:01:12]} Qe3+ {[%emt 0:01:31]} 37. Kb1 {[%emt 0:00:09]} Qd2 {[%emt 0:01:27]} 38. R4g2 {[%emt 0:01:35]} Qa5 {[%emt 0:00:30]} 39. Rg4 {[%emt 0:00:46]} Re5 {[%emt 0:00:33]} 40. Rd4 {[%emt 0:00:44]} Rd5 {[%emt 0:00:30]} 41. Rdg4 {[%emt 0:15:17]} Re5 {[%emt 0:00:00]} 42. Rc4 {[%emt 0:00:00]} Rc5 {[%emt 0:05:13]} 43. Rd4 {[%emt 0:00:00]} b5 {[%emt 0:01:14]} 44. Rd7 {[%emt 0:00:00]} Qxa4 {[%emt 0:05:14]} 45. Rc1 {[%emt 0:00:00]} Rcc8 {[%emt 0:05:15]} 46. Rxf7 {[%emt 0:00:00]} Qe4 {[%emt 0:00:07]} 47. Rxa7 {[%emt 0:00:00]} Rcf8 {[%emt 0:01:29]} 48. Rf1 {[%emt 0:00:00]} g4 {[%emt 0:00:31]} 49. Qg7+ 1-0

[Event "GER-ch Youth-U18 2022"]
[Site "Willingen"]
[Date "2022.06.07"]
[Round "4.1"]
[White "von Mettenheim, Johannes"]
[Black "Fromm, Marius"]
[Result "0-1"]
[ECO "D30"]
[WhiteElo "2176"]
[BlackElo "2317"]
[Annotator "TA"]
[PlyCount "48"]
[EventDate "2022.06.05"]
[EventType "swiss"]
[EventRounds "9"]
[EventCountry "GER"]
[SourceTitle "playchess.com"]
[Source "ChessBase"]
[SourceQuality "1"]
[TimeControl "40/4500+30:900+30"]

{[%evp 9,48,0,0,13,8,0,0,2,2,0,12,0,0,0,31,25,34,-6,-11,-241,-240,-233,-239,-290,-281,-307,-306,-589,-579,-636,-608,-691,-683,-858,-641,-603,-608,-683,-670,-725,-663]} 1. d4 {[%emt 0:00:00]} d5 {[%emt 0:00:00][%cal Bd7d5,Bd5c4,Bc4b3][%mdl 32]} 2. c4 {[%emt 0:00:00]} e6 {[%emt 0:00:00]} 3. Nf3 {[%emt 0:00:00]} a6 {[%emt 0:00:00]} 4. g3 {[%emt 0:00:00]} dxc4 {[%emt 0:00:00]} 5. Bg2 {[%emt 0:00:00]} b5 {[%emt 0:00:00]} 6. Ne5 {[%emt 0:00:00] D30: Queen's Gambit Declined: Systems without Nc3.} c6 {[%emt 0:00:00]} 7. O-O {[%emt 0:00:00]} Bb7 {[%emt 0:00:00]} 8. b3 {[%emt 0:00:00] The position is equal.} cxb3 {[%emt 0:00:00]} 9. a4 {[%emt 0:00:00]} Nf6 {[%emt 0:00:00]} 10. Bb2 {[%emt 0:00:00]} Be7 {[%emt 0:00:00]} 11. Nd2 {[%emt 0:00:00] [#]} Qb6 $146 {[%emt 0:07:21]} ({Predecessor:} 11... O-O 12. Nxb3 Qb6 13. Nc5 Rd8 14. a5 Qc7 15. Nxb7 Qxb7 16. Qb3 Nd5 17. Rfc1 Ra7 {1-0 (38) Tisaj,D (2356)-Hofer,E (2216) Innsbruck 2021}) 12. Nxb3 {[%emt 0:00:00]} Nbd7 {[%emt 0:04:14]} 13. a5 {[%emt 0:00:00]} Qc7 {[%emt 0:09:57] ...Nxe5 is the strong threat.} 14. Qc2 $2 {[%emt 0:03:00] This costs White the game.} (14. Nd3 $11 {and White is okay.}) 14... Nxe5 $19 {[%emt 0:01:05]} 15. dxe5 {[%emt 0:00:06] [#]} Nd7 {[%emt 0:00:22][%cal Bf6d7,Bd7c5,Bc5e4,Be4c3][%mdl 32]} 16. Bd4 {[%emt 0:00:12]} c5 {[%emt 0:01:55] Threatens to win with ...Bxg2.} 17. Bxb7 {[%emt 0:00:10]} Qxb7 {[%emt 0:00:03]} 18. Nxc5 {[%emt 0:00:11]} (18. Bc3) 18... Nxc5 {[%emt 0:03:07] Black is clearly winning.} 19. f4 {[%emt 0:19:30] [#]} O-O $1 {[%emt 0:00:48]} 20. g4 {[%emt 0:00:58]} (20. Rab1 Rac8) 20... Rac8 {[%emt 0:00:26] aiming for ...Qd5.} 21. f5 {[%emt 0:00:53]} Qe4 {[%emt 0:00:33]} 22. Qxe4 {[%emt 0:00:06]} Nxe4 {[%emt 0:00:04]} 23. Bb6 {[%emt 0:05:44]} Nc3 {[%emt 0:02:39]} 24. Kg2 {[%emt 0:00:43]} Rc4 {[%emt 0:00:40] Weighted Error Value: White=0.67/Black=0.12 (very precise)} 0-1

[Event "GER-ch Youth-U18 2022"]
[Site "Willingen"]
[Date "2022.06.07"]
[Round "4.2"]
[White "Weihrauch, Jakob"]
[Black "Pubantz, Jan"]
[Result "0-1"]
[ECO "B12"]
[WhiteElo "2139"]
[BlackElo "2265"]
[Annotator "TA"]
[PlyCount "64"]
[EventDate "2022.06.05"]
[EventType "swiss"]
[EventRounds "9"]
[EventCountry "GER"]
[SourceTitle "playchess.com"]
[Source "ChessBase"]
[SourceQuality "1"]
[TimeControl "40/4500+30:900+30"]

{[%evp 12,64,27,16,23,4,20,0,-2,-21,-15,-18,48,0,4,0,0,-84,-70,-66,0,0,0,0,0,0,0,0,0,0,0,0,0,0,0,0,0,0,0,0,0,-64,-61,-848,-820,-827,-819,-1280,-730,-6452,-2699,-29987,-29984,-29980,-930]} 1. e4 {[%emt 0:00:00]} c6 {[%emt 0:00:00]} 2. d4 {[%emt 0:00:00]} d5 {[%emt 0:00:00]} 3. e5 {[%emt 0:00:00]} Bf5 {[%emt 0:00:00]} 4. h4 {[%emt 0:00:00]} h6 {[%emt 0:00:00]} 5. g4 {[%emt 0:00:00]} Be4 {[%emt 0:00:00]} 6. f3 {[%emt 0:00:00][%cal Bf2f3,Bf3f4,Bf4e5][%mdl 32]} Bh7 {[%emt 0:00:00]} 7. e6 {[%emt 0:00:00]} Nf6 {[%emt 0:00:00] B12: Caro-Kann: Advance Variation.} 8. exf7+ {[%emt 0:00:00]} Kxf7 {[%emt 0:00:00]} 9. f4 {[%emt 0:00:00]} (9. Bh3 $5 {[%cal Rg4g5]}) 9... c5 {[%emt 0:00:00] [#] White should prevent ...Nc6. The position is equal.} 10. Nf3 $146 {[%emt 0:00:00]} ({Predecessor:} 10. g5 Ne4 11. Nf3 Nc6 12. h5 Bf5 13. g6+ Ke8 14. Bd3 e6 15. Nbd2 cxd4 16. Bb5 {0-1 (36) Mohammad Fahad,R (2314)-Keymer,V (2591) Chess.com INT 2021}) 10... Nc6 {[%emt 0:00:00]} 11. Ne5+ {[%emt 0:06:21]} Nxe5 {[%emt 0:24:01]} (11... Kg8 $1 $11) 12. fxe5 {[%emt 0:02:33]} Ne4 {[%emt 0:02:19]} 13. Qf3+ {[%emt 0:13:37]} Kg8 $1 {[%emt 0:00:42]} 14. g5 {[%emt 0:04:31] [#]} (14. Bd3 $11 {remains equal.} Qd7 15. O-O) 14... e6 $1 $17 {[%emt 0:18:18]} ({Don't do} 14... cxd4 15. Bh3 Nc5 16. O-O $14) 15. Bh3 {[%emt 0:07:30][%cal Rh3e6]} Qd7 {[%emt 0:00:33]} (15... Qe7 $15 16. gxh6 cxd4) 16. gxh6 $1 $11 {[%emt 0:03:14] aiming for Rg1.} cxd4 {[%emt 0:02:14] Strongly threatening ...Rc8.} 17. Rg1 $1 {[%emt 0:07:44] Hoping for h5.} Bf5 {[%emt 0:01:20]} 18. Bxf5 {[%emt 0:05:01]} exf5 {[%emt 0:00:02]} 19. hxg7 {[%emt 0:07:46]} Bxg7 {[%emt 0:00:23]} 20. h5 {[%emt 0:01:35] [#] And now h6 would win.} Qe7 {[%emt 0:13:49]} 21. h6 {[%emt 0:03:34]} Qh4+ {[%emt 0:00:40]} 22. Kd1 {[%emt 0:03:15]} Rxh6 {[%emt 0:01:00]} 23. Bxh6 {[%emt 0:00:05]} Qxh6 {[%emt 0:00:06]} 24. Qg2 {[%emt 0:04:50]} ({Not} 24. Qxf5 $2 Rf8 25. Qxf8+ Kxf8 $19) 24... Re8 {[%emt 0:07:42][%cal Ba8e8,Be8e5,Be5g5,Bg5g2][%mdl 32]} 25. a4 {[%emt 0:02:53]} Rxe5 {[%emt 0:03:33] White must now prevent ...f4. Chess con chili.} 26. Ra3 {[%emt 0:00:45]} (26. Nd2 $11) 26... f4 $1 $15 {[%emt 0:01:31] Threatens to win with ...Rg5. Black is much more active.} 27. Nd2 $2 {[%emt 0:02:20][%mdl 8192] Loses the game.} (27. Rf1 $15) 27... Rg5 $19 {[%emt 0:01:44]} 28. Qf1 {[%emt 0:01:10]} Nxd2 {[%emt 0:00:28]} 29. Qe1 {[%emt 0:02:04]} Ne4 {[%emt 0:01:45]} 30. Rf1 {[%emt 0:01:41]} Rg2 {[%emt 0:01:59] ( -> ...Qc6)} 31. Qb4 {[%emt 0:04:06]} Qh5+ {[%emt 0:01:31]} 32. Raf3 {[%emt 0:00:24]} Ng5 {[%emt 0:01:12] Weighted Error Value: White=1.05/Black=0.26 (precise)} (32... d3 $142 33. cxd3 Nf2+ 34. Kc2 Nxd3+ 35. Qd2 Ne1+ 36. Rxe1 Qxf3 37. Re7 Rxd2+ 38. Kxd2 Qf2+ 39. Re2 Qd4+ 40. Ke1 f3 41. Re8+ Kf7 42. Re2 Bh6 43. Re7+ Kxe7 44. Kf1 Qxb2 45. a5 Qg2+ 46. Ke1 Qg1#) 0-1